bitfinex-derivatives/quotes_BTCF0:USTF0_20241022
["timestamp","ask_amount","ask_price","bid_price","bid_amount"]
[1729592670350,0.074507,67138.0,67132.0,0.14]
[1729592670558,0.3608,67141.0,67132.0,0.14]
[1729592670754,0.3608,67141.0,67135.0,0.14]
[1729592670942,0.074507,67138.0,67135.0,0.14]
[1729592671148,0.074507,67138.0,67136.0,0.001]
[1729592671746,0.435303,67141.0,67136.0,0.001]
[1729592672453,0.3608,67141.0,67135.0,0.14]
[1729592672654,0.074505,67140.0,67135.0,0.14]
[1729592673161,0.074505,67140.0,67136.0,0.001]
[1729592673551,0.3628,67141.0,67136.0,0.001]
[1729592673755,0.074506,67139.0,67135.0,0.141]
[1729592674163,0.074506,67139.0,67135.0,0.142]
[1729592675261,0.076506,67139.0,67135.0,0.142]
[1729592675856,0.076506,67139.0,67135.0,0.141]
[1729592676057,0.002,67139.0,67136.0,0.001]
[1729592676660,0.002,67139.0,67135.0,0.21651]
[1729592677161,0.07208548,67138.0,67136.0,0.074509]
[1729592677360,0.07208548,67137.0,67136.0,0.076509]
[1729592677759,0.0633046,67137.0,67136.0,0.535509]
[1729592678065,0.13539008,67138.0,67136.0,0.534509]
[1729592678266,0.13539008,67137.0,67136.0,0.534509]
[1729592678456,0.07209248,67137.0,67136.0,0.674509]
[1729592678656,0.13540323,67138.0,67136.0,0.674509]
[1729592678864,0.13540323,67137.0,67136.0,0.674509]
[1729592679370,0.13540323,67137.0,67136.0,0.675509]
[1729592679869,0.06431075,67137.0,67136.0,0.676509]
[1729592680259,0.13640323,67137.0,67136.0,0.676509]
[1729592680665,0.22813317,67137.0,67136.0,0.676509]
[1729592680965,0.22813317,67137.0,67136.0,0.602]
[1729592681159,0.30022565,67137.0,67136.0,0.602]
[1729592682273,0.13640323,67137.0,67136.0,0.602]
[1729592683571,0.13649033,67137.0,67136.0,0.602]
[1729592684163,0.001,67137.0,67136.0,0.602]
[1729592687167,0.001,67137.0,67136.0,0.462]
[1729592688868,0.44784,67137.0,67136.0,0.002]
[1729592699175,0.65717449,67137.0,67136.0,0.002]
[1729592700176,0.21033449,67137.0,67136.0,0.002]
[1729592700371,0.30033449,67137.0,67136.0,0.002]
[1729592700575,0.22582649,67137.0,67136.0,0.002]
[1729592700980,0.13582649,67137.0,67136.0,0.002]
[1729592701180,0.22582649,67137.0,67136.0,0.002]
[1729592701485,0.60964811,67137.0,67136.0,0.002]
[1729592701682,0.16280811,67137.0,67136.0,0.002]
[1729592701883,0.13586913,67137.0,67136.0,0.076509]
[1729592702077,0.001,67137.0,67136.0,0.076509]
[1729592702475,0.001,67137.0,67136.0,0.07508532]
[1729592702782,0.001,67137.0,67136.0,0.46057632]
[1729592703084,0.31815687,67137.0,67136.0,0.46057632]
[1729592703390,0.074514,67132.0,67122.0,0.09]
[1729592703687,0.09,67129.0,67125.0,0.164521]
[1729592703881,0.13569956,67128.0,67125.0,0.164521]
[1729592704085,0.13569956,67127.0,67125.0,0.09]
[1729592704288,0.13569956,67126.0,67125.0,0.09]
[1729592704995,0.13569956,67126.0,67125.0,0.164521]
[1729592705182,0.13569956,67126.0,67125.0,0.701441]
[1729592705381,0.22715687,67126.0,67125.0,0.701441]
[1729592705590,0.13569956,67126.0,67125.0,0.611441]
[1729592706288,0.13569956,67126.0,67125.0,0.661441]
[1729592706488,0.16670761,67132.0,67125.0,0.66065965]
[1729592706691,0.1934723,67161.0,67132.0,0.074513]
[1729592706692,0.00223469,67152.0,67132.0,0.074513]
[1729592706879,0.00223469,67152.0,67144.0,0.5008]
[1729592707080,0.00223469,67152.0,67149.0,0.14]
[1729592707280,0.0149877,67158.0,67149.0,0.14]
[1729592707690,0.214485,67157.0,67149.0,0.14]
[1729592707879,0.074485,67157.0,67149.0,0.14]
[1729592708081,0.074487,67156.0,67149.0,0.14]
[1729592708286,0.074487,67156.0,67149.0,0.19892447]
[1729592708486,0.074487,67156.0,67149.0,0.14]
[1729592708683,0.3608,67153.0,67149.0,0.14465883]
[1729592708888,0.3608,67153.0,67149.0,0.14]
[1729592709194,0.3608,67153.0,67149.0,0.141]
[1729592709395,0.3608,67153.0,67149.0,0.142]
[1729592710489,0.149993,67150.0,67149.0,0.002]
[1729592711296,0.149993,67150.0,67149.0,0.142]
[1729592711989,0.149993,67150.0,67149.0,0.002]
[1729592712704,0.289993,67150.0,67149.0,0.002]
[1729592712992,0.074506,67138.0,67137.0,0.3608]
[1729592714389,0.07451,67135.0,67133.0,0.074512]
[1729592714590,0.074511,67134.0,67133.0,0.074512]
[1729592714997,0.435308,67138.0,67134.0,0.074511]
[1729592715188,0.07451,67135.0,67134.0,0.214511]
[1729592716795,0.06009341,67135.0,67131.0,0.14]
[1729592716990,0.074513,67132.0,67131.0,0.14]
[1729592717188,0.074513,67132.0,67131.0,0.14466009]
[1729592717392,0.13444421,67132.0,67131.0,0.14]
[1729592718087,0.074514,67131.0,67130.0,0.00223378]
[1729592718289,0.13444521,67131.0,67130.0,0.00223378]
[1729592718496,0.20246229,67131.0,67130.0,0.00223378]
[1729592718697,0.12794829,67131.0,67130.0,0.00223378]
[1729592718887,0.12794829,67131.0,67130.0,0.07674878]
[1729592719289,0.12794829,67131.0,67130.0,0.07974878]
[1729592719598,0.05993121,67131.0,67130.0,0.08440892]
[1729592719793,0.05993121,67131.0,67130.0,0.08740892]
[1729592720202,0.074511,67134.0,67130.0,0.01289392]
[1729592720388,0.074511,67134.0,67133.0,0.14]
[1729592720589,0.13469387,67134.0,67133.0,0.14]
[1729592721293,0.13469387,67134.0,67133.0,0.214512]
[1729592721294,0.06018287,67134.0,67133.0,0.214512]
[1729592721690,0.436147,67138.0,67133.0,0.575312]
[1729592721889,0.435307,67138.0,67137.0,0.19884169]
[1729592722098,0.074507,67138.0,67137.0,0.14]
[1729592723205,0.14,67140.0,67136.0,0.05883765]
[1729592723394,0.074509,67136.0,67135.0,0.05883765]
[1729592723704,0.14,67137.0,67131.0,0.07366299]
[1729592723705,0.074513,67132.0,67131.0,0.07366299]
[1729592723999,0.074513,67132.0,67130.0,0.07674878]
[1729592725301,0.074513,67132.0,67130.0,0.07974878]
[1729592726305,0.074514,67131.0,67130.0,0.00523378]
[1729592726497,0.074514,67131.0,67130.0,0.00823378]
[1729592726697,0.074514,67131.0,67130.0,0.012894]
[1729592727098,0.074514,67131.0,67130.0,0.00823378]
[1729592727295,0.074514,67131.0,67130.0,0.01289398]
[1729592727497,0.0035,67142.0,67130.0,0.01289398]
[1729592727702,0.074502,67142.0,67141.0,0.14]
[1729592728005,0.074506,67139.0,67136.0,0.14]
[1729592728400,0.074507,67138.0,67136.0,0.14]
[1729592728597,0.074508,67137.0,67134.0,0.074511]
[1729592728799,0.074508,67137.0,67135.0,0.05885839]
[1729592728800,0.14,67137.0,67135.0,0.05885839]
[1729592729014,0.214509,67136.0,67135.0,0.04415268]
[1729592729395,0.154509,67136.0,67135.0,0.04415268]
[1729592729806,0.154509,67136.0,67130.0,0.00523378]
[1729592729807,0.074514,67131.0,67130.0,0.00523378]
[1729592730334,0.435314,67131.0,67130.0,0.00523378]
[1729592730700,0.435314,67131.0,67130.0,0.00223378]
[1729592731005,0.074514,67131.0,67130.0,0.00223378]
[1729592731505,0.074514,67131.0,67130.0,0.08140917]
[1729592731803,0.074514,67131.0,67130.0,0.07774878]
[1729592732603,0.074514,67131.0,67130.0,0.07874878]
[1729592732906,0.074514,67131.0,67130.0,0.08340902]
[1729592733399,0.074514,67131.0,67130.0,0.00789402]
[1729592733605,0.074514,67131.0,67130.0,0.00689402]
[1729592734608,0.3712,67144.0,67130.0,0.45377402]
[1729592734805,0.074506,67138.0,67137.0,0.14]
[1729592735998,0.3608,67144.0,67134.0,0.074511]
[1729592736204,0.074513,67132.0,67130.0,0.00423378]
[1729592736399,0.074513,67132.0,67131.0,0.00466007]
[1729592736602,0.074513,67132.0,67131.0,0.00466025]
[1729592736803,0.074513,67132.0,67130.0,0.00623378]
[1729592736998,0.074513,67132.0,67131.0,0.2970423]
[1729592737403,0.074513,67132.0,67131.0,0.22353295]
[1729592738113,0.0104,67141.0,67131.0,0.22353295]
[1729592738302,0.5008,67144.0,67136.0,0.14]
[1729592738303,0.50164,67144.0,67136.0,0.14]
[1729592738505,0.07451,67142.0,67141.0,0.0589585]
[1729592739511,0.074516,67136.0,67134.0,0.07366345]
[1729592739815,0.074517,67135.0,67134.0,0.07366345]
[1729592740012,0.074517,67135.0,67134.0,0.15722423]
[1729592740315,0.074517,67135.0,67134.0,0.08353114]
[1729592743205,0.14,67137.0,67120.0,0.3608]
[1729592743206,0.14,67137.0,67132.0,0.07381511]
[1729592743407,0.796954,67138.0,67134.0,0.05905674]
[1729592743613,0.074522,67131.0,67130.0,0.07381511]
[1729592743806,0.074522,67131.0,67130.0,0.15780885]
[1729592744506,0.074522,67131.0,67129.0,0.07381511]
[1729592744507,0.3608,67131.0,67129.0,0.07381511]
[1729592744708,0.074523,67130.0,67129.0,0.07381511]
[1729592745009,0.074523,67130.0,67129.0,0.15787107]
[1729592745212,0.074523,67130.0,67128.0,0.07381511]
[1729592745510,0.074524,67129.0,67128.0,0.14833911]
[1729592745709,0.074524,67129.0,67128.0,0.074524]
[1729592746110,0.074524,67129.0,67128.0,0.14833911]
[1729592746311,0.074524,67129.0,67128.0,0.076524]
[1729592747202,0.074524,67129.0,67128.0,0.078524]
[1729592747403,0.07452,67133.0,67128.0,0.07781511]
[1729592747609,0.074519,67134.0,67132.0,0.0737723]
[1729592747905,0.3608,67139.0,67130.0,0.14]
[1729592747906,0.074514,67138.0,67136.0,0.074516]
[1729592748102,0.074514,67138.0,67135.0,0.21373471]
[1729592748304,0.3608,67139.0,67138.0,0.074514]
[1729592748521,0.3608,67139.0,67138.0,0.14824871]
[1729592748709,0.3608,67139.0,67138.0,0.074514]
[1729592748907,0.3608,67139.0,67138.0,0.15825889]
[1729592749102,0.3608,67139.0,67138.0,0.23197741]
[1729592749308,0.3608,67139.0,67138.0,0.15825889]
[1729592749615,0.3608,67139.0,67138.0,0.075514]
[1729592749909,0.3608,67139.0,67138.0,0.15912181]
[1729592750309,0.3630346,67145.0,67138.0,0.08460781]
[1729592750510,0.074509,67143.0,67138.0,0.08460781]
[1729592750704,0.07451,67142.0,67139.0,0.074513]
[1729592750913,0.07451,67142.0,67140.0,0.074511]
[1729592751115,0.0022346,67145.0,67141.0,0.3608]
[1729592751305,0.0022346,67145.0,67144.0,0.214507]
[1729592751909,0.074511,67141.0,67139.0,0.074512]
[1729592752218,0.074511,67141.0,67140.0,0.00465961]
[1729592752417,0.074511,67141.0,67138.0,0.074513]
[1729592752717,0.074511,67141.0,67139.0,0.00465972]
[1729592752914,0.14,67140.0,67134.0,0.074518]
[1729592753121,0.14,67140.0,67135.0,0.00465986]
[1729592753122,0.074515,67137.0,67135.0,0.00465986]
[1729592753416,0.074512,67140.0,67136.0,0.00465982]
[1729592753622,0.074512,67140.0,67135.0,0.074517]
[1729592753918,0.074512,67140.0,67137.0,0.14]
[1729592754318,0.074512,67140.0,67139.0,0.3608]
[1729592754514,0.3608,67144.0,67139.0,0.36545961]
[1729592754814,0.07451,67142.0,67141.0,0.14]
[1729592755207,0.3608,67144.0,67139.0,0.3608]
[1729592755413,0.074511,67141.0,67139.0,0.3608]
[1729592756009,0.3608,67144.0,67140.0,0.14]
[1729592756216,0.07451,67142.0,67140.0,0.14]
[1729592758415,0.074512,67140.0,67139.0,0.3608]
[1729592758614,0.074512,67140.0,67139.0,0.36545972]
[1729592759122,0.074512,67140.0,67139.0,0.43447781]
[1729592760021,0.074508,67144.0,67139.0,0.57447781]
[1729592760333,0.074512,67141.0,67139.0,0.57447781]
[1729592760826,0.074512,67141.0,67140.0,0.15692729]
[1729592762123,0.3608,67145.0,67139.0,0.57527781]
[1729592762332,0.074508,67144.0,67139.0,0.57447781]
[1729592762519,0.3712,67151.0,67144.0,0.14]
[1729592762828,0.150002,67150.0,67149.0,0.14]
[1729592763321,0.150002,67150.0,67146.0,0.28818281]
[1729592764033,0.150002,67150.0,67147.0,0.23102192]
[1729592764222,0.150002,67150.0,67147.0,0.14818081]
[1729592765216,0.150002,67150.0,67147.0,0.075503]
[1729592765421,0.074502,67149.0,67147.0,0.075503]
[1729592765820,0.074502,67149.0,67147.0,0.001]
[1729592766023,0.074502,67149.0,67148.0,0.074503]
[1729592766734,0.0755,67150.0,67147.0,0.002]
[1729592767033,0.0755,67150.0,67149.0,0.074502]
[1729592767526,0.0755,67150.0,67149.0,0.214502]
[1729592768229,0.0755,67150.0,67149.0,0.215502]
[1729592769931,0.0755,67150.0,67149.0,0.216502]
[1729592771129,0.0755,67150.0,67149.0,0.28996495]
[1729592771725,0.0755,67150.0,67149.0,0.216502]
[1729592775026,0.0755,67150.0,67149.0,0.356502]
[1729592775222,0.0755,67150.0,67149.0,0.216502]
[1729592776030,0.0755,67150.0,67149.0,0.142]
[1729592776436,0.150001,67150.0,67149.0,0.142]
[1729592776636,0.0755,67150.0,67149.0,0.142]
[1729592779938,0.150001,67150.0,67149.0,0.142]
[1729592780928,0.150001,67150.0,67149.0,0.002]
[1729592785240,0.290001,67150.0,67149.0,0.002]
[1729592785444,0.150001,67150.0,67149.0,0.002]
[1729592788749,0.16543469,67150.0,67149.0,0.002]
[1729592789647,0.52623469,67150.0,67149.0,0.002]
[1729592800155,0.52623469,67150.0,67149.0,0.06096675]
[1729592800855,0.16543469,67150.0,67149.0,0.06096675]
[1729592801053,0.52623469,67150.0,67149.0,0.06096675]
[1729592801261,0.52623469,67150.0,67149.0,0.002]
[1729592802247,0.61623469,67150.0,67149.0,0.002]
[1729592802648,0.61623469,67150.0,67134.0,0.16296812]
[1729592802649,0.18,67146.0,67134.0,0.16296812]
[1729592802851,0.525317,67135.0,67134.0,0.074518]
[1729592803046,0.074519,67133.0,67132.0,0.08845012]
[1729592803253,0.074519,67133.0,67132.0,0.17229781]
[1729592803558,0.074519,67133.0,67132.0,0.17384769]
[1729592803862,0.074519,67133.0,67132.0,0.08384769]
[1729592804064,0.074519,67133.0,67132.0,0.18764325]
[1729592804362,0.214519,67133.0,67132.0,0.09911064]
[1729592804557,0.214519,67133.0,67132.0,0.10011064]
[1729592804761,0.214519,67133.0,67132.0,0.002]
[1729592805254,0.074519,67133.0,67132.0,0.002]
[1729592806146,0.074519,67133.0,67125.0,0.00223406]
[1729592806147,0.074527,67126.0,67125.0,0.00223406]
[1729592806351,0.575327,67126.0,67125.0,0.00223406]
[1729592806551,0.575327,67126.0,67125.0,0.01766671]
[1729592807667,0.575327,67126.0,67125.0,0.02143265]
[1729592808359,0.575327,67126.0,67125.0,0.02743265]
[1729592808764,0.575327,67126.0,67125.0,0.012]
[1729592809755,0.59042024,67126.0,67125.0,0.012]
[1729592809953,0.45042024,67126.0,67125.0,0.012]
[1729592810257,0.59042024,67126.0,67125.0,0.012]
[1729592812360,0.59042024,67126.0,67125.0,0.011]
[1729592813562,0.59042024,67126.0,67125.0,0.01]
[1729592819268,0.11356,67132.0,67125.0,0.01]
[1729592819269,0.074521,67132.0,67131.0,0.074521]
[1729592819458,0.074521,67132.0,67131.0,0.214521]
[1729592819966,0.3608,67141.0,67131.0,0.72688]
[1729592820161,0.3608,67141.0,67139.0,0.074513]
[1729592820672,0.0767472,67140.0,67139.0,0.074513]
[1729592821465,0.0787472,67140.0,67139.0,0.075513]
[1729592823669,0.0787472,67140.0,67139.0,0.09054352]
[1729592823873,0.0787472,67140.0,67139.0,0.09154352]
[1729592824662,0.0042352,67140.0,67139.0,0.53838352]
[1729592825964,0.002,67140.0,67139.0,0.53838352]
[1729592826669,0.074509,67143.0,67139.0,0.53738352]
[1729592826868,0.002,67140.0,67139.0,0.09154352]
[1729592827265,0.002,67140.0,67139.0,0.53838352]
[1729592827764,0.076509,67143.0,67140.0,0.074512]
[1729592828072,0.076509,67143.0,67142.0,0.14]
[1729592828073,0.076508,67143.0,67142.0,0.14]
[1729592829574,0.074508,67143.0,67142.0,0.14]
[1729592829974,0.074508,67143.0,67142.0,0.141]
[1729592830962,0.076508,67143.0,67142.0,0.142]
[1729592834677,0.076508,67143.0,67142.0,0.18625031]
[1729592835067,0.076508,67143.0,67142.0,0.21651]
[1729592835368,0.076508,67143.0,67142.0,0.142]
[1729592837165,0.002,67143.0,67142.0,0.57731]
[1729592837972,0.002,67143.0,67142.0,0.43731]
[1729592840371,0.002,67143.0,67142.0,0.07651]
[1729592842870,0.002,67143.0,67142.0,0.18991]
[1729592843071,0.002,67143.0,67142.0,0.55071]
[1729592846370,0.002,67143.0,67142.0,0.73071]
[1729592848375,0.002,67143.0,67142.0,0.61731]
[1729592848582,0.002,67143.0,67142.0,0.73071]
[1729592853581,0.076508,67143.0,67142.0,0.002]
[1729592853785,0.076508,67143.0,67142.0,0.092]
[1729592854373,0.076508,67143.0,67142.0,0.142]
[1729592854574,0.002,67143.0,67142.0,0.21651]
[1729592855788,0.002,67143.0,67142.0,0.002]
[1729592855978,0.076508,67143.0,67142.0,0.002]
[1729592857691,0.076508,67143.0,67142.0,0.08404573]
[1729592859280,0.076508,67143.0,67142.0,0.15791096]
[1729592859786,0.076508,67143.0,67142.0,0.08404573]
[1729592860487,0.076508,67143.0,67142.0,0.08409692]
[1729592861286,0.076508,67143.0,67142.0,0.15795951]
[1729592861783,0.216508,67143.0,67142.0,0.15796085]
[1729592861982,0.216508,67143.0,67131.0,0.08853261]
[1729592861983,0.074514,67138.0,67131.0,0.08853261]
[1729592862182,0.074522,67131.0,67130.0,0.24366797]
[1729592862384,0.3608,67132.0,67130.0,0.14]
[1729592862580,0.3608,67132.0,67131.0,0.074522]
[1729592862782,0.435321,67132.0,67131.0,0.074522]
[1729592862980,0.074522,67131.0,67130.0,0.14]
[1729592863488,0.074522,67131.0,67130.0,0.22953261]
[1729592864183,0.074522,67131.0,67130.0,0.23053261]
[1729592864384,0.074522,67131.0,67130.0,0.09053261]
[1729592864889,0.435322,67131.0,67130.0,0.09053261]
[1729592868289,0.435322,67131.0,67130.0,0.002]
[1729592870286,0.575322,67131.0,67130.0,0.002]
[1729592872691,0.435322,67131.0,67130.0,0.002]
[1729592873796,0.435322,67131.0,67130.0,0.076523]
[1729592874002,0.074522,67131.0,67130.0,0.076523]
[1729592875300,0.074522,67131.0,67130.0,0.002]
[1729592876700,0.074522,67131.0,67130.0,0.076523]
[1729592883602,0.074522,67131.0,67130.0,0.13547401]
[1729592884003,0.074522,67131.0,67130.0,0.076523]
[1729592884401,0.074522,67131.0,67130.0,0.13547401]
[1729592885301,0.074522,67131.0,67130.0,0.076523]
[1729592886503,0.074522,67131.0,67130.0,0.13553752]
[1729592887200,0.074522,67131.0,67130.0,0.076523]
[1729592893515,0.074522,67131.0,67130.0,0.1504392]
[1729592893708,0.074522,67131.0,67130.0,0.076523]
[1729592894416,0.074522,67131.0,67130.0,0.2404392]
[1729592894603,0.074522,67131.0,67130.0,0.24871061]
[1729592895512,0.07452,67135.0,67134.0,0.074518]
[1729592895707,0.07452,67135.0,67134.0,0.164518]
[1729592896604,0.07452,67135.0,67134.0,0.254518]
[1729592896801,0.003,67135.0,67134.0,0.254518]
[1729592897403,0.003,67135.0,67134.0,0.164518]
[1729592897813,0.077517,67135.0,67134.0,0.164518]
[1729592899212,0.003,67135.0,67134.0,0.254518]
[1729592899912,0.003,67135.0,67134.0,0.164518]
[1729592900212,0.077517,67135.0,67134.0,0.164518]
[1729592900518,0.077517,67135.0,67134.0,0.17941377]
[1729592901609,0.077517,67135.0,67134.0,0.08941377]
[1729592901909,0.077517,67135.0,67134.0,0.17941377]
[1729592902816,0.077517,67135.0,67134.0,0.26108299]
[1729592908209,0.003,67135.0,67134.0,0.35108299]
[1729592908718,0.003,67135.0,67134.0,0.26108299]
[1729592909117,0.003,67135.0,67134.0,0.35108299]
[1729592909922,0.003,67135.0,67134.0,0.26108299]
[1729592910825,0.003,67135.0,67134.0,0.17941377]
[1729592911318,0.003,67135.0,67134.0,0.26941377]
[1729592912315,0.003,67135.0,67134.0,0.63021377]
[1729592913021,0.003,67135.0,67134.0,0.54021377]
[1729592916227,0.003,67135.0,67134.0,0.63021377]
[1729592917628,0.003,67135.0,67134.0,0.54021377]
[1729592917949,0.003,67135.0,67134.0,0.71169956]
[1729592918921,0.003,67135.0,67134.0,0.80884607]
[1729592919328,0.003,67135.0,67134.0,0.71169956]
[1729592919522,0.003,67135.0,67134.0,0.80030698]
[1729592919920,0.003,67135.0,67134.0,0.71169956]
[1729592922526,0.003,67135.0,67134.0,0.80857811]
[1729592925231,0.003,67135.0,67134.0,0.62857811]
[1729592925445,0.003,67135.0,67134.0,0.80857811]
[1729592925628,0.003,67135.0,67134.0,0.8082974]
[1729592925825,0.003,67135.0,67134.0,0.63021377]
[1729592932941,0.003,67135.0,67134.0,0.71162901]
[1729592933134,0.003,67135.0,67134.0,0.53162901]
[1729592933437,0.003,67135.0,67134.0,0.71162901]
[1729592934032,0.003,67135.0,67134.0,0.80856074]
[1729592935438,0.003,67135.0,67134.0,0.62856074]
[1729592935641,0.003,67135.0,67134.0,0.71162901]
[1729592939227,0.003,67135.0,67134.0,0.80854154]
[1729592939639,0.003,67135.0,67134.0,0.64462901]
[1729592939828,0.003,67135.0,67134.0,0.82462901]
[1729592940639,0.003,67135.0,67134.0,0.9215941]
[1729592940837,0.003,67135.0,67134.0,0.74321377]
[1729592942947,0.01263468,67145.0,67144.0,0.074507]
[1729592943249,0.00223468,67145.0,67144.0,0.164507]
[1729592944131,0.00523468,67145.0,67144.0,0.165507]
[1729592944531,0.00523468,67145.0,67144.0,0.166507]
[1729592944844,0.07974068,67145.0,67144.0,0.092]
[1729592947043,0.07974068,67145.0,67144.0,0.166507]
[1729592947744,0.07974068,67145.0,67144.0,0.21080963]
[1729592947940,0.07974068,67145.0,67144.0,0.24756062]
[1729592948548,0.07974068,67145.0,67144.0,0.2475693]
[1729592949342,0.00523468,67145.0,67144.0,0.2475693]
[1729592950151,0.00523468,67145.0,67144.0,0.1575693]
[1729592950348,0.07974068,67145.0,67144.0,0.2475693]
[1729592953051,0.07974068,67145.0,67144.0,0.1575693]
[1729592953254,0.07974068,67145.0,67144.0,0.2475693]
[1729592953654,0.07974068,67145.0,67144.0,0.24750693]
[1729592953849,0.00523468,67145.0,67144.0,0.24750693]
[1729592954852,0.00523468,67145.0,67144.0,0.166507]
[1729592955247,0.00523468,67145.0,67144.0,0.24745521]
[1729592955462,0.07974068,67145.0,67144.0,0.24745521]
[1729592955652,0.07974068,67145.0,67144.0,0.17294821]
[1729592957154,0.07974068,67145.0,67144.0,0.08294821]
[1729592957351,0.07451,67142.0,67141.0,1e-08]
[1729592957651,0.52531,67142.0,67141.0,1e-08]
[1729592957861,0.8976,67142.0,67133.0,0.0885968]
[1729592958048,0.43531,67142.0,67141.0,0.05916622]
[1729592958246,0.074512,67140.0,67139.0,0.05916622]
[1729592958453,0.074512,67140.0,67133.0,0.09]
[1729592958454,0.074518,67134.0,67133.0,0.09]
[1729592960353,0.074518,67134.0,67133.0,0.4508]
[1729592960554,0.07451,67142.0,67133.0,0.18]
[1729592960754,0.3608,67143.0,67141.0,0.09]
[1729592962558,0.001,67142.0,67141.0,0.09]
[1729592962965,0.001,67142.0,67141.0,0.164511]
[1729592963156,0.3618,67143.0,67141.0,0.166511]
[1729592965259,0.001,67142.0,67141.0,0.165511]
[1729592965463,0.07551,67142.0,67141.0,0.002]
[1729592965663,0.07551,67142.0,67141.0,0.092]
[1729592966161,0.16451,67142.0,67141.0,0.002]
[1729592966360,0.16451,67142.0,67141.0,0.001]
[1729592966558,0.16451,67142.0,67141.0,0.002]
[1729592967061,0.16551,67142.0,67141.0,0.002]
[1729592967663,0.16551,67142.0,67141.0,0.092]
[1729592967854,0.07551,67142.0,67141.0,0.092]
[1729592969267,0.07551,67142.0,67141.0,0.166511]
[1729592970764,0.001,67142.0,67141.0,0.166511]
[1729592973176,0.001,67142.0,67141.0,0.24650612]
[1729592973373,0.001,67142.0,67141.0,0.24637876]
[1729592974677,0.0755,67150.0,67141.0,0.33637876]
[1729592974876,0.0755,67150.0,67149.0,0.18]
[1729592975770,0.0765,67150.0,67149.0,0.18]
[1729592975970,0.0765,67150.0,67149.0,0.181]
[1729592976366,0.0765,67150.0,67149.0,0.255502]
[1729592977370,0.0765,67150.0,67149.0,0.165502]
[1729592977573,0.0755,67150.0,67149.0,0.256502]
[1729592978071,0.0755,67150.0,67149.0,0.369382]
[1729592978668,0.0755,67150.0,67149.0,0.45797306]
[1729592978876,0.0755,67150.0,67149.0,0.369382]
[1729592979378,0.0755,67150.0,67149.0,0.45782757]
[1729592979767,0.0104,67159.0,67158.0,0.074492]
[1729592979970,0.074486,67163.0,67161.0,0.074488]
[1729592980275,0.074482,67167.0,67162.0,0.254487]
[1729592980482,0.074482,67167.0,67163.0,0.0589075]
[1729592980872,0.074483,67166.0,67163.0,0.0589075]
[1729592981071,0.074483,67166.0,67164.0,0.0589075]
[1729592981276,0.074483,67166.0,67162.0,0.2233945]
[1729592981780,0.01513691,67169.0,67163.0,0.001]
[1729592981982,0.074485,67164.0,67163.0,0.001]
[1729592982487,0.074485,67164.0,67163.0,0.1989075]
[1729592983385,0.074485,67164.0,67163.0,0.14]
[1729592983986,0.074485,67164.0,67163.0,0.141]
[1729592984484,0.074485,67164.0,67163.0,0.142]
[1729592984985,0.074485,67164.0,67163.0,0.141]
[1729592985279,0.074485,67164.0,67163.0,0.142]
[1729592985670,0.074485,67164.0,67163.0,0.002]
[1729592986075,0.14121637,67164.0,67163.0,0.002]
[1729592987182,0.074485,67164.0,67163.0,0.002]
[1729593001588,0.00223428,67165.0,67163.0,0.002]
[1729593001893,0.00223428,67165.0,67164.0,0.14]
[1729593002289,0.07671828,67165.0,67164.0,0.14]
[1729593002586,0.00223428,67165.0,67164.0,0.214485]
[1729593004186,0.0104,67173.0,67164.0,0.214485]
[1729593004504,0.14162549,67172.0,67168.0,0.074481]
[1729593004686,0.06714849,67171.0,67168.0,0.074481]
[1729593004887,0.06714849,67170.0,67164.0,0.11476]
[1729593005179,0.14,67178.0,67174.0,0.074473]
[1729593005180,0.0104,67178.0,67174.0,0.074473]
[1729593005384,0.449069,67179.0,67175.0,0.074472]
[1729593005385,0.0671973,67177.0,67175.0,0.074472]
[1729593005596,0.0671973,67176.0,67175.0,0.074473]
[1729593005792,0.06747923,67176.0,67172.0,0.074476]
[1729593005991,0.36164,67179.0,67172.0,0.11276]
[1729593006289,0.36164,67179.0,67178.0,0.07447]
[1729593006595,0.42836422,67179.0,67178.0,0.21447]
[1729593006794,0.3608,67179.0,67178.0,0.21447]
[1729593007185,0.06761897,67179.0,67178.0,0.35447]
[1729593007396,0.0104,67187.0,67178.0,0.35447]
[1729593007397,0.0104,67187.0,67184.0,0.074463]
[1729593007588,0.06784259,67186.0,67184.0,0.214463]
[1729593007793,0.074459,67188.0,67185.0,0.14]
[1729593008009,0.06791484,67187.0,67185.0,0.14]
[1729593008206,0.074459,67188.0,67185.0,0.14]
[1729593008515,0.3608,67186.0,67178.0,0.01544298]
[1729593008701,0.074462,67185.0,67184.0,0.001]
[1729593010005,0.435262,67185.0,67184.0,0.001]
[1729593010208,0.435262,67185.0,67184.0,0.002]
[1729593010702,0.435262,67185.0,67184.0,0.001]
[1729593010904,0.575262,67185.0,67184.0,0.001]
[1729593011300,0.074475,67173.0,67172.0,0.14]
[1729593011702,0.074475,67173.0,67168.0,0.00223315]
[1729593011703,0.14,67173.0,67168.0,0.00223315]
[1729593011911,0.57528,67169.0,67157.0,0.3683]
[1729593012110,0.57528,67169.0,67144.0,0.3608]
[1729593012111,0.074498,67152.0,67151.0,0.14]
[1729593014515,0.074494,67156.0,67151.0,0.14]
[1729593014714,0.074494,67156.0,67155.0,0.14]
[1729593015408,0.3608,67163.0,67155.0,0.18416108]
[1729593015614,0.074487,67162.0,67161.0,0.14]
[1729593016206,0.3608,67163.0,67159.0,0.28]
[1729593016410,0.3608,67163.0,67162.0,0.14]
[1729593016901,0.435286,67163.0,67162.0,0.14]